fUST/lending_fUST_20250209
["ID","MTS","AMOUNT","RATE_DAILY","PERIOD"]
[352300880,1739032245732,-427.24333584,0.00011643,2]
[352300882,1739032245741,-632.46,0.00011643,2]
[352300884,1739032245750,-3184.82,0.00011643,2]
[352300886,1739032245759,-741.16,0.00011643,2]
[352300888,1739032245769,-973.48,0.00011643,2]
[352300891,1739032245778,-819.82,0.00011643,2]
[352300893,1739032245788,-169.14377305,0.00011643,2]
[352300895,1739032245801,-271.10270288,0.0001168,2]
[352300897,1739032245811,-151.0,0.000117,2]
[352300899,1739032245820,-150.0,0.00011725,2]
[352300901,1739032245830,-537.0,0.00011725,2]
[352300903,1739032245840,-889.61667784,0.00011725,2]
[352300926,1739032246046,-1085.38332216,0.00011725,2]
[352300928,1739032246055,-2296.0,0.00011725,2]
[352300930,1739032246065,-396.0,0.00011725,2]
[352300932,1739032246074,-350.06798927,0.00011739,2]
[352300934,1739032246083,-997.71,0.00011779,2]
[352300936,1739032246092,-1013.77,0.00011779,2]
[352300938,1739032246101,-945.68,0.00011779,2]
[352300940,1739032246112,-627.6906511,0.00011779,2]
[352300942,1739032246121,-683.06,0.00011779,2]
[352300944,1739032246130,-500.0,0.00011779,2]
[352300946,1739032246140,-500.0,0.00011779,2]
[352300948,1739032246151,-500.0,0.00011779,2]
[352300950,1739032246161,-500.0,0.0001178,2]
[352300952,1739032246170,-696.01,0.0001178,2]
[352300954,1739032246179,-628.11,0.0001178,2]
[352300956,1739032246189,-500.0,0.0001178,2]
[352300958,1739032246198,-500.0,0.0001178,2]
[352300960,1739032246208,-500.0,0.0001178,2]
[352300962,1739032246217,-722.74,0.0001178,2]
[352300964,1739032246226,-500.0,0.0001178,2]
[352300966,1739032246235,-500.0,0.0001178,2]
[352300968,1739032246245,-500.0,0.0001178,2]
[352300970,1739032246255,-799.13,0.0001178,2]
[352300972,1739032246264,-500.0,0.0001178,2]
[352300974,1739032246274,-500.0,0.0001178,2]
[352300976,1739032246283,-500.0,0.0001178,2]
[352300978,1739032246292,-500.0,0.0001178,2]
[352300980,1739032246301,-500.0,0.0001178,2]
[352300982,1739032246311,-500.0,0.0001178,2]
[352300984,1739032246320,-924.52,0.0001178,2]
[352300986,1739032246329,-557.77,0.0001178,2]
[352300988,1739032246339,-500.0,0.0001178,2]
[352300990,1739032246349,-738.88,0.0001178,2]
[352300992,1739032246361,-500.0,0.0001178,2]
[352300994,1739032246370,-745.71,0.0001178,2]
[352300996,1739032246379,-2468.71,0.0001178,2]
[352300998,1739032246390,-500.0,0.0001178,2]
[352300999,1739032246399,-1209.12,0.0001178,2]
[352301001,1739032246409,-1617.11635295,0.0001178,2]
[352301010,1739032246490,-520.61230099,0.0001178,2]
[352301044,1739032246810,-500.0,0.00010958,2]
[352301046,1739032246819,-500.0,0.00010958,2]
[352301048,1739032246828,-500.0,0.00011095,2]
[352301050,1739032246838,-27019.68134606,0.0001178,2]
[352301052,1739032246848,-1416.05,0.0001178,2]
[352301054,1739032246858,-892.97,0.0001178,2]
[352301056,1739032246868,-500.0,0.0001178,2]
[352301058,1739032246880,-9968.97,0.0001178,2]
[352301060,1739032246890,-500.0,0.0001178,2]
[352301062,1739032246899,-1362.93,0.0001178,2]
[352301064,1739032246909,-3136.36,0.0001178,2]
[352301066,1739032246918,-911.1,0.0001178,2]
[352301068,1739032246928,-500.0,0.0001178,2]
[352301070,1739032246937,-1076.6,0.0001178,2]
[352301072,1739032246947,-990.72,0.0001178,2]
[352301074,1739032246957,-500.0,0.0001178,2]
[352301092,1739032246966,-500.0,0.0001178,2]
[352301094,1739032247126,-711.91,0.0001178,2]
[352301096,1739032247135,-1333.82,0.0001178,2]
[352301099,1739032247146,-717.12,0.0001178,2]
[352301100,1739032247156,-500.0,0.0001178,2]
[352301103,1739032247166,-500.0,0.0001178,2]
[352301105,1739032247174,-2297.14,0.0001178,2]
[352301106,1739032247183,-578.03,0.0001178,2]
[352301109,1739032247194,-500.0,0.0001178,2]
[352301111,1739032247203,-1051.04,0.0001178,2]
[352301113,1739032247213,-2475.83,0.0001178,2]
[352301114,1739032247222,-500.0,0.0001178,2]
[352301116,1739032247231,-500.0,0.0001178,2]
[352301119,1739032247242,-909.64,0.0001178,2]
[352301121,1739032247251,-5722.58,0.0001178,2]
[352301123,1739032247261,-1015.58,0.0001178,2]
[352301125,1739032247271,-500.0,0.0001178,2]
[352301127,1739032247281,-2712.56,0.0001178,2]
[352301129,1739032247290,-500.0,0.0001178,2]
[352301131,1739032247300,-2148.37,0.0001178,2]
[352301133,1739032247309,-500.0,0.0001178,2]
[352301135,1739032247319,-231.02375435,0.0001178,2]
[352301137,1739032247329,-10288.63,0.0001178,2]
[352301139,1739032247338,-1742.18,0.0001178,2]
[352301141,1739032247347,-500.0,0.0001178,2]
[352301142,1739032247358,-1215.64,0.0001178,2]
[352301145,1739032247369,-500.0,0.0001178,2]
[352301147,1739032247379,-990.35,0.0001178,2]
[352301148,1739032247389,-602.4,0.0001178,2]
[352301150,1739032247398,-500.0,0.0001178,2]
[352301153,1739032247408,-1683.08,0.0001178,2]
[352301155,1739032247418,-296.34736631,0.0001178,2]
[352301182,1739032247685,-500.0,0.00010958,2]
[352301184,1739032247695,-500.0,0.00010958,2]
[352301186,1739032247705,-500.0,0.00011095,2]
[352301189,1739032247714,-151.0,0.000114,2]
[352301190,1739032247724,-151.0,0.000115,2]
[352301192,1739032247733,-151.0,0.000116,2]
[352301194,1739032247742,-151.0,0.000116,2]
[352301196,1739032247752,-151.0,0.000117,2]
[352301198,1739032247761,-144.9245,0.0001178,2]
[352302898,1739033248758,10000.0,0.000186,120]
[352302905,1739033432271,-400.0,0.00010685,2]
[352302906,1739033432281,-300.0,0.00010957,2]
[352302907,1739033432293,-500.0,0.00010958,2]
[352302908,1739033432303,-500.0,0.00010958,2]
[352302909,1739033432312,-500.0,0.00010958,2]
[352302910,1739033432321,-500.0,0.00010958,2]
[352302911,1739033432331,-539.99,0.00010958,2]
[352302912,1739033432341,-500.0,0.00010958,2]
[352302913,1739033432351,-500.0,0.00010958,2]
[352302914,1739033432360,-409.58,0.00010958,2]
[352302915,1739033432369,-500.0,0.00010958,2]
[352302916,1739033432379,-352.01020634,0.00010958,2]
[352302917,1739033432424,-147.98979366,0.00010958,2]
[352302918,1739033432434,-352.01020634,0.00010958,2]
[352302919,1739033438103,-147.98979366,0.00010958,2]
[352302920,1739033438112,-500.0,0.00010958,2]
[352302921,1739033438122,-500.0,0.00010958,2]
[352302922,1739033438132,-500.0,0.00010958,2]
[352302923,1739033438142,-500.0,0.00010958,2]
[352302924,1739033438152,-500.0,0.00010958,2]
[352302925,1739033438161,-500.0,0.00010958,2]
[352302926,1739033438171,-500.0,0.00010958,2]
[352302927,1739033438181,-542.73,0.00010958,2]
[352302928,1739033438193,-1062.83,0.00010958,2]
[352302929,1739033438205,-500.0,0.00010958,2]
[352302930,1739033438214,-500.0,0.00010958,2]
[352302931,1739033438223,-1080.47,0.00010958,2]
[352302932,1739033438232,-466.71739335,0.00010958,2]
[352302934,1739033438242,-500.0,0.00010958,2]
[352302936,1739033438251,-509.97,0.00010958,2]
[352302937,1739033438260,-500.0,0.00010958,2]
[352302938,1739033438271,-323.66307761,0.00010958,2]
[352302939,1739033438280,-500.0,0.00010958,2]
[352302940,1739033438290,-500.0,0.00010958,2]
[352302941,1739033438299,-500.0,0.00010958,2]
[352302942,1739033438308,-500.0,0.00010958,2]
[352302943,1739033438318,-643.07,0.00010958,2]
[352302944,1739033438327,-563.96504213,0.00010958,2]
[352302945,1739033438336,-500.0,0.00010958,2]
[352302946,1739033438346,-500.0,0.00010958,2]
[352302947,1739033438355,-500.0,0.00010958,2]
[352302948,1739033438365,-207.60939306,0.00010958,2]
[352302949,1739033438374,-500.0,0.00010958,2]
[352302950,1739033438384,-500.0,0.00010958,2]
[352302951,1739033438393,-500.0,0.00010958,2]
[352302952,1739033438403,-500.0,0.00010958,2]
[352302953,1739033438413,-1010.56,0.00010958,2]
[352302954,1739033438422,-500.0,0.00010958,2]
[352302955,1739033438431,-500.0,0.00010958,2]
[352302956,1739033438440,-500.0,0.00010958,2]
[352302958,1739033438450,-737.14,0.00010958,2]
[352302960,1739033438459,-500.0,0.00010958,2]
[352302962,1739033438468,-500.0,0.00010958,2]
[352302964,1739033438478,-705.78,0.00010958,2]
[352302966,1739033438487,-500.0,0.00010958,2]
[352302968,1739033438496,-500.0,0.00010958,2]
[352302970,1739033438505,-500.0,0.00010958,2]
[352302972,1739033438515,-500.0,0.00010958,2]
[352302974,1739033438524,-500.0,0.00010958,2]
[352302976,1739033438533,-500.0,0.00010958,2]
[352302978,1739033438543,-500.0,0.00010958,2]
[352302980,1739033438552,-500.0,0.00010958,2]
[352302982,1739033438562,-608.65562437,0.00010958,2]
[352302984,1739033438571,-766.77,0.00010958,2]
[352302986,1739033438580,-500.0,0.00010958,2]
[352302988,1739033438590,-500.0,0.00010958,2]
[352302990,1739033438599,-500.0,0.00010958,2]
[352302992,1739033438608,-500.0,0.00010958,2]
[352302994,1739033438618,-500.0,0.00010958,2]
[352302996,1739033438627,-500.0,0.00010958,2]
[352302997,1739033438636,-500.0,0.00010958,2]
[352302998,1739033438645,-503.1723947,0.00010958,2]
[352302999,1739033438655,-607.9,0.00010958,2]
[352303000,1739033438664,-500.0,0.00010958,2]
[352303001,1739033438674,-500.0,0.00010958,2]
[352303002,1739033438683,-500.0,0.00010958,2]
[352303003,1739033438693,-500.0,0.00010958,2]
[352303004,1739033438702,-500.0,0.00010958,2]
[352303005,1739033438711,-500.0,0.00010958,2]
[352303006,1739033438719,-500.0,0.00010958,2]
[352303007,1739033438728,-561.36332075,0.00010958,2]
[352303008,1739033438738,-847.48,0.00010958,2]
[352303009,1739033438747,-500.0,0.00010958,2]
[352303010,1739033438755,-752.04,0.00010958,2]
[352303011,1739033438765,-500.0,0.00010958,2]
[352303012,1739033438774,-500.0,0.00010958,2]
[352303013,1739033438783,-500.0,0.00010958,2]
[352303014,1739033438792,-250.8217622,0.00010958,2]
[352303015,1739033438802,-554.9,0.00010958,2]
[352303016,1739033438811,-500.0,0.00010958,2]
[352303017,1739033438820,-860.83,0.00010958,2]
[352303019,1739033438829,-1152.86,0.00010958,2]
[352303020,1739033438838,-500.0,0.00010958,2]
[352303022,1739033438848,-500.0,0.00010958,2]
[352303024,1739033438857,-775.34,0.00010958,2]
[352303026,1739033438867,-500.0,0.00010958,2]
[352303028,1739033438876,-642.25683987,0.00010958,2]
[352303031,1739033438886,-500.0,0.00010958,2]
[352303033,1739033438895,-28237.64,0.00010958,2]
[352303034,1739033438905,-500.0,0.00010958,2]
[352303036,1739033438914,-2386.42,0.00010958,2]
[352303038,1739033438923,-9553.59,0.00010958,2]
[352303040,1739033438932,-3005.67,0.00010958,2]
[352303042,1739033438942,-500.0,0.00010958,2]
[352303044,1739033438951,-500.0,0.00010958,2]
[352303046,1739033438961,-1427.85,0.00010958,2]
[352303048,1739033438970,-1306.14,0.00010958,2]
[352303050,1739033438980,-500.0,0.00010958,2]
[352303052,1739033438990,-500.0,0.00010958,2]
[352303054,1739033439000,-900.42,0.00010958,2]
[352303056,1739033439010,-1031.74,0.00010958,2]
[352303058,1739033439020,-500.0,0.00010958,2]
[352303061,1739033439030,-873.14,0.00010958,2]
[352303063,1739033439040,-500.0,0.00010958,2]
[352303065,1739033439050,-500.0,0.00010958,2]
[352303067,1739033439059,-500.0,0.00010958,2]
[352303068,1739033439068,-500.0,0.00010958,2]
[352303070,1739033439078,-500.0,0.00010958,2]
[352303073,1739033439087,-500.0,0.00010958,2]
[352303074,1739033439098,-500.0,0.00010958,2]
[352303076,1739033439107,-500.0,0.00010958,2]
[352303078,1739033439117,-500.0,0.00010958,2]
[352303080,1739033439127,-500.0,0.00010958,2]
[352303082,1739033439137,-682.25,0.00010958,2]
[352303084,1739033439146,-949.44,0.00010958,2]
[352303086,1739033439155,-500.0,0.00010958,2]
[352303088,1739033439164,-500.0,0.00010958,2]
[352303090,1739033439173,-500.0,0.00010958,2]
[352303092,1739033439182,-710.4,0.00010958,2]
[352303094,1739033439195,-500.0,0.00010958,2]
[352303096,1739033439207,-500.0,0.00010958,2]
[352303098,1739033439217,-1278.25,0.00010958,2]
[352303100,1739033439227,-500.0,0.00010958,2]
[352303102,1739033439239,-500.0,0.00010958,2]
[352303104,1739033439248,-500.0,0.00010958,2]
[352303106,1739033439257,-500.0,0.00010958,2]
[352303108,1739033439268,-500.0,0.00010958,2]
[352303110,1739033439277,-500.0,0.00010958,2]
[352303112,1739033439287,-509.69596392,0.00010958,2]
[352303115,1739033439297,-500.0,0.00010958,2]
[352303117,1739033439307,-2322.33,0.00010958,2]
[352303119,1739033439316,-500.0,0.00010958,2]
[352303121,1739033439326,-1482.91,0.00010958,2]
[352303122,1739033439337,-584.36,0.00010958,2]
[352303124,1739033439346,-500.0,0.00010958,2]
[352303126,1739033439356,-500.0,0.00010958,2]
[352303129,1739033439366,-500.0,0.00010958,2]
[352303131,1739033439375,-502.3,0.00010958,2]
[352303133,1739033439384,-1103.85,0.00010958,2]
[352303135,1739033439394,-500.0,0.00010958,2]
[352303137,1739033439403,-500.0,0.00010958,2]
[352303139,1739033439413,-926.6,0.00010958,2]
[352303141,1739033439422,-500.0,0.00010958,2]
[352303143,1739033439431,-500.0,0.00010958,2]
[352303145,1739033439441,-5484.14,0.00010958,2]
[352303146,1739033439450,-500.0,0.00010958,2]
[352303148,1739033439460,-500.0,0.00010958,2]
[352303150,1739033439470,-507.0,0.00010958,2]
[352303152,1739033439479,-500.0,0.00010958,2]
[352303155,1739033439489,-500.0,0.00010958,2]
[352303157,1739033439498,-500.0,0.00010958,2]
[352303158,1739033439507,-500.0,0.00010958,2]
[352303160,1739033439517,-1011.35,0.00010958,2]
[352303162,1739033439526,-2169.19,0.00010958,2]
[352303164,1739033439535,-500.0,0.00010958,2]
[352303166,1739033439545,-548.19,0.00010958,2]
[352303168,1739033439554,-500.0,0.00010958,2]
[352303170,1739033439563,-10882.11,0.00010958,2]
[352303173,1739033439573,-500.0,0.00010958,2]
[352303175,1739033439583,-500.0,0.00010958,2]
[352303177,1739033439592,-2678.22,0.00010958,2]
[352303196,1739033439766,-500.0,0.00010958,2]
[352303198,1739033439776,-500.0,0.00010958,2]
[352303200,1739033439785,-603.68,0.00010958,2]
[352303202,1739033439795,-998.6,0.00010958,2]
[352303204,1739033439804,-2828.72,0.00010958,2]
[352303206,1739033439814,-649.4,0.00010958,2]
[352303208,1739033439824,-1299.38,0.00010958,2]
[352303210,1739033439833,-502.69411031,0.00010958,2]
[352303212,1739033439843,-647.36,0.00010958,2]
[352303214,1739033439852,-500.0,0.00010958,2]
[352303216,1739033439861,-1798.84,0.00010958,2]
[352303218,1739033439870,-973.48,0.00010958,2]
[352303220,1739033439880,-3408.8,0.00010958,2]
[352303222,1739033439889,-741.16,0.00010958,2]
[352303224,1739033439899,-500.0,0.00010958,2]
[352303226,1739033439908,-197.58,0.00010958,2]
[352303228,1739033439917,-500.0,0.00010958,2]
[352303230,1739033439927,-500.0,0.00010958,2]
[352303232,1739033439936,-500.0,0.00011095,2]
[352303234,1739033439947,-500.0,0.00011095,2]
[352303235,1739033439956,-500.0,0.00011095,2]
[352303237,1739033439966,-500.0,0.00011095,2]
[352303239,1739033439975,-500.0,0.00011095,2]
[352303241,1739033439985,-500.0,0.00011095,2]
[352303243,1739033439995,-500.0,0.00011095,2]
[352303246,1739033440005,-500.0,0.00011095,2]
[352303248,1739033440015,-500.0,0.00011095,2]
[352303250,1739033440024,-1062.83,0.00011095,2]
[352303252,1739033440034,-500.0,0.00011095,2]
[352303254,1739033440043,-1080.47,0.00011095,2]
[352303256,1739033440052,-509.97,0.00011095,2]
[352303258,1739033440061,-500.0,0.00011095,2]
[352303260,1739033440070,-643.07,0.00011095,2]
[352303261,1739033440080,-500.0,0.00011095,2]
[352303264,1739033440090,-500.0,0.00011095,2]
[352303265,1739033440099,-500.0,0.00011095,2]
[352303267,1739033440110,-500.0,0.00011095,2]
[352303270,1739033440120,-1010.56,0.00011095,2]
[352303272,1739033440130,-500.0,0.00011095,2]
[352303274,1739033440139,-500.0,0.00011095,2]
[352303276,1739033440149,-500.0,0.00011095,2]
[352303278,1739033440158,-737.14,0.00011095,2]
[352303280,1739033440168,-500.0,0.00011095,2]
[352303281,1739033440177,-500.0,0.00011095,2]
[352303283,1739033440187,-705.78,0.00011095,2]
[352303285,1739033440201,-500.0,0.00011095,2]
[352303287,1739033440210,-318.02772529,0.00011095,2]
[352303289,1739033440219,-500.0,0.00011095,2]
[352303291,1739033440230,-500.0,0.00011095,2]
[352303293,1739033440239,-500.0,0.00011095,2]
[352303295,1739033440248,-500.0,0.00011095,2]
[352303297,1739033440260,-518.41079878,0.00011095,2]
[352303299,1739033440270,-766.77,0.00011095,2]
[352303301,1739033440279,-500.0,0.00011095,2]
[352303303,1739033440288,-500.0,0.00011095,2]
[352303305,1739033440298,-500.0,0.00011095,2]
[352303307,1739033440307,-500.0,0.00011095,2]
[352303309,1739033440318,-500.0,0.00011095,2]
[352303311,1739033440327,-500.0,0.00011095,2]
[352303313,1739033440336,-500.0,0.00011095,2]
[352303315,1739033440345,-500.0,0.00011095,2]
[352303317,1739033440355,-847.48,0.00011095,2]
[352303319,1739033440364,-752.04,0.00011095,2]
[352303321,1739033440373,-500.0,0.00011095,2]
[352303323,1739033440383,-500.0,0.00011095,2]
[352303325,1739033440392,-554.9,0.00011095,2]
[352303327,1739033440401,-500.0,0.00011095,2]
[352303329,1739033440410,-860.83,0.00011095,2]
[352303331,1739033440419,-1152.86,0.00011095,2]
[352303333,1739033440428,-500.0,0.00011095,2]
[352303335,1739033440438,-775.34,0.00011095,2]
[352303337,1739033440448,-500.0,0.00011095,2]
[352303339,1739033440457,-265.86682504,0.00011095,2]
[352303341,1739033440466,-28237.64,0.00011095,2]
[352303343,1739033440476,-500.0,0.00011095,2]
[352303345,1739033440485,-2386.42,0.00011095,2]
[352303347,1739033440495,-9553.59,0.00011095,2]
[352303349,1739033440504,-3005.67,0.00011095,2]
[352303351,1739033440514,-1427.85,0.00011095,2]
[352303353,1739033440523,-1306.14,0.00011095,2]
[352303355,1739033440533,-500.0,0.00011095,2]
[352303357,1739033440542,-900.42,0.00011095,2]
[352303359,1739033440552,-1031.74,0.00011095,2]
[352303361,1739033440561,-500.0,0.00011095,2]
[352303363,1739033440571,-873.14,0.00011095,2]
[352303365,1739033440581,-500.0,0.00011095,2]
[352303367,1739033440590,-500.0,0.00011095,2]
[352303369,1739033440600,-500.0,0.00011095,2]
[352303371,1739033440609,-470.98628233,0.00011095,2]
[352303373,1739033440618,-500.0,0.00011095,2]
[352303375,1739033440628,-682.25,0.00011095,2]
[352303377,1739033440637,-949.44,0.00011095,2]
[352303379,1739033440646,-500.0,0.00011095,2]
[352303381,1739033440655,-710.4,0.00011095,2]
[352303383,1739033440665,-500.0,0.00011095,2]
[352303385,1739033440675,-1278.25,0.00011095,2]
[352303387,1739033440684,-500.0,0.00011095,2]
[352303390,1739033440697,-500.0,0.00011095,2]
[352303392,1739033440706,-500.0,0.00011095,2]
[352303393,1739033440715,-500.0,0.00011095,2]
[352303395,1739033440725,-500.0,0.00011095,2]
[352303397,1739033440734,-2322.33,0.00011095,2]
[352303399,1739033440744,-500.0,0.00011095,2]
[352303401,1739033440753,-1482.91,0.00011095,2]
[352303403,1739033440763,-584.36,0.00011095,2]
[352303405,1739033440772,-500.0,0.00011095,2]
[352303407,1739033440781,-502.3,0.00011095,2]
[352303409,1739033440790,-1103.85,0.00011095,2]
[352303411,1739033440799,-500.0,0.00011095,2]
[352303413,1739033440809,-926.6,0.00011095,2]
[352303415,1739033440818,-500.0,0.00011095,2]
[352303417,1739033440827,-5484.14,0.00011095,2]
[352303419,1739033440836,-500.0,0.00011095,2]
[352303421,1739033440846,-500.0,0.00011095,2]
[352303423,1739033440855,-500.0,0.00011095,2]
[352303425,1739033440865,-1011.35,0.00011095,2]
[352303427,1739033440874,-2169.19,0.00011095,2]
[352303429,1739033440884,-500.0,0.00011095,2]
[352303431,1739033440893,-548.19,0.00011095,2]
[352303433,1739033440903,-500.0,0.00011095,2]
[352303435,1739033440913,-10882.11,0.00011095,2]
[352303437,1739033440923,-500.0,0.00011095,2]
[352303439,1739033440933,-500.0,0.00011095,2]
[352303442,1739033440946,-2678.22,0.00011095,2]
[352303444,1739033440957,-500.0,0.00011095,2]
[352303445,1739033440966,-500.0,0.00011095,2]
[352303447,1739033440975,-603.68,0.00011095,2]
[352303449,1739033440984,-998.6,0.00011095,2]
[352303451,1739033440994,-2828.72,0.00011095,2]
[352303453,1739033441003,-649.4,0.00011095,2]
[352303455,1739033441012,-1299.38,0.00011095,2]
[352303457,1739033441021,-647.36,0.00011095,2]
[352303459,1739033441031,-584.46,0.00011095,2]
[352303461,1739033441048,-1798.84,0.00011095,2]
[352303463,1739033441057,-973.48,0.00011095,2]
[352303465,1739033441066,-3408.8,0.00011095,2]
[352303467,1739033441077,-741.16,0.00011095,2]
[352303469,1739033441087,-500.0,0.00011095,2]
[352303471,1739033441096,-500.0,0.00011095,2]
[352303472,1739033441105,-500.0,0.00011232,2]
[352303473,1739033441115,-500.0,0.00011232,2]
[352303474,1739033441123,-500.0,0.00011232,2]
[352303475,1739033441133,-500.0,0.00011232,2]
[352303476,1739033441142,-500.0,0.00011232,2]
[352303477,1739033441151,-500.0,0.00011232,2]
[352303478,1739033441163,-500.0,0.00011232,2]
[352303480,1739033441177,-500.0,0.00011232,2]
[352303481,1739033441187,-1062.83,0.00011232,2]
[352303484,1739033441200,-500.0,0.00011232,2]
[352303486,1739033441209,-1080.47,0.00011232,2]
[352303487,1739033441218,-509.97,0.00011232,2]
[352303490,1739033441228,-500.0,0.00011232,2]
[352303492,1739033441238,-643.07,0.00011232,2]
[352303494,1739033441247,-201.74221922,0.00011232,2]
[352303496,1739033441256,-500.0,0.00011232,2]
[352303498,1739033441265,-500.0,0.00011232,2]
[352303500,1739033441275,-500.0,0.00011232,2]
[352303502,1739033441284,-1010.56,0.00011232,2]
[352303504,1739033441293,-500.0,0.00011232,2]
[352303506,1739033441302,-500.0,0.00011232,2]
[352303508,1739033441312,-737.14,0.00011232,2]
[352303510,1739033441321,-500.0,0.00011232,2]
[352303512,1739033441332,-500.0,0.00011232,2]
[352303514,1739033441341,-705.78,0.00011232,2]
[352303516,1739033441350,-372.75,0.00011232,2]
[352303518,1739033441359,-500.0,0.00011232,2]
[352303520,1739033441369,-500.0,0.00011232,2]
[352303522,1739033441378,-500.0,0.00011232,2]
[352303524,1739033441387,-500.0,0.00011232,2]
[352303526,1739033441397,-766.77,0.00011232,2]
[352303528,1739033441406,-640.61,0.00011232,2]
[352303530,1739033441416,-500.0,0.00011232,2]
[352303532,1739033441425,-500.0,0.00011232,2]
[352303534,1739033441435,-500.0,0.00011232,2]
[352303536,1739033441445,-500.0,0.00011232,2]
[352303538,1739033441454,-500.0,0.00011232,2]
[352303540,1739033441464,-500.0,0.00011232,2]
[352303542,1739033441473,-500.0,0.00011232,2]
[352303544,1739033441482,-847.48,0.00011232,2]
[352303546,1739033441492,-752.04,0.00011232,2]
[352303548,1739033441501,-500.0,0.00011232,2]
[352303550,1739033441511,-500.0,0.00011232,2]
[352303552,1739033441520,-554.9,0.00011232,2]
[352303554,1739033441530,-500.0,0.00011232,2]
[352303556,1739033441540,-860.83,0.00011232,2]
[352303558,1739033441550,-1152.86,0.00011232,2]
[352303560,1739033441559,-188.19660481,0.00011232,2]
[352303562,1739033441568,-775.34,0.00011232,2]
[352303564,1739033441578,-500.0,0.00011232,2]
[352303566,1739033441587,-28237.64,0.00011232,2]
[352303568,1739033441596,-500.0,0.00011232,2]
[352303571,1739033441606,-2386.42,0.00011232,2]
[352303573,1739033441615,-9553.59,0.00011232,2]
[352303575,1739033441624,-3005.67,0.00011232,2]
[352303577,1739033441633,-1427.85,0.00011232,2]
[352303578,1739033441643,-1306.14,0.00011232,2]
[352303581,1739033441652,-500.0,0.00011232,2]
[352303583,1739033441661,-900.42,0.00011232,2]
[352303585,1739033441670,-1031.74,0.00011232,2]
[352303587,1739033441679,-500.0,0.00011232,2]
[352303589,1739033441687,-873.14,0.00011232,2]
[352303591,1739033441699,-500.0,0.00011232,2]
[352303593,1739033441707,-388.6,0.00011232,2]
[352303595,1739033441717,-500.0,0.00011232,2]
[352303597,1739033441726,-682.25,0.00011232,2]
[352303598,1739033441738,-949.44,0.00011232,2]
[352303601,1739033441748,-500.0,0.00011232,2]
[352303603,1739033441757,-500.0,0.00011232,2]
[352303605,1739033441766,-710.4,0.00011232,2]
[352303607,1739033441775,-500.0,0.00011232,2]
[352303609,1739033441784,-1278.25,0.00011232,2]
[352303611,1739033441793,-500.0,0.00011232,2]
[352303613,1739033441803,-500.0,0.00011232,2]
[352303615,1739033441812,-500.0,0.00011232,2]
[352303617,1739033441821,-2322.33,0.00011232,2]
[352303619,1739033441830,-500.0,0.00011232,2]
[352303620,1739033441840,-1482.91,0.00011232,2]
[352303623,1739033441850,-584.36,0.00011232,2]
[352303625,1739033441859,-500.0,0.00011232,2]